fUST/lending_fUST_20250505
["ID","MTS","AMOUNT","RATE_DAILY","PERIOD"]
[359962461,1746451842436,-429.4093787,0.00035616,14]
[359962462,1746451842447,-500.0,0.00035616,7]
[359962463,1746451842456,-400.0,0.00035616,14]
[359962464,1746451842465,-500.0,0.00035616,7]
[359962465,1746451842474,-2760.64,0.00035616,14]
[359962466,1746451842483,-401.07692146,0.00035616,14]
[359962467,1746451842492,-534.57111978,0.00035616,14]
[359962468,1746451842501,-400.0,0.00035616,14]
[359962469,1746451842510,-151.0,0.00035616,7]
[359962470,1746451842520,-617.62,0.00035616,14]
[359962471,1746451842529,-400.0,0.00035616,14]
[359962472,1746451842538,-151.0,0.00035616,7]
[359962474,1746451842547,-400.0,0.00035616,14]
[359962475,1746451842557,-400.0,0.00035616,14]
[359962477,1746451842566,-402.84023441,0.00035616,14]
[359962480,1746451842575,-2039.67,0.00035616,14]
[359962482,1746451842585,-400.0,0.00035616,14]
[359962485,1746451842595,-402.11863792,0.00035616,14]
[359962488,1746451842604,-400.0,0.00035616,14]
[359962490,1746451842614,-400.0,0.00035616,14]
[359962493,1746451842623,-405.54412597,0.00035616,14]
[359962496,1746451842632,-400.0,0.00035616,14]
[359962498,1746451842642,-400.0,0.00035616,14]
[359962501,1746451842651,-418.32395766,0.00035616,14]
[359962503,1746451842660,-744.36,0.00035616,14]
[359962504,1746451842670,-151.0,0.00035616,14]
[359962508,1746451842680,-151.0,0.00035616,14]
[359962510,1746451842689,-151.0,0.00035616,14]
[359962513,1746451842700,-400.0,0.00035616,14]
[359962517,1746451842709,-400.0,0.00035616,14]
[359962520,1746451842719,-400.0,0.00035616,14]
[359962522,1746451842729,-48.96432287,0.00035616,14]
[359962586,1746451843475,-102.03567713,0.00035616,14]
[359962588,1746451843484,-151.0,0.00035616,14]
[359962590,1746451843494,-239.96432287,0.00035616,14]
[359962600,1746451843582,-48.4114855,0.00035616,14]
[359962643,1746451843985,-111.62419163,0.00035616,14]
[359962645,1746451843994,-213.559398,0.00035616,14]
[359962647,1746451844003,-400.0,0.00035616,14]
[359962649,1746451844013,-400.0,0.00035616,14]
[359962651,1746451844022,-679.21474928,0.00035616,14]
[359962883,1746451846169,-226.93807695,0.0003491,2]
[359962895,1746451846281,-318.06192305,0.0003491,2]
[359962898,1746451846290,-151.0,0.00035496,14]
[359962900,1746451846299,-270.848574,0.00035506,14]
[359962902,1746451846309,-151.0,0.00035506,14]
[359962904,1746451846319,-121.42525072,0.00035616,14]
[359962906,1746451846329,-400.0,0.00035616,14]
[359962908,1746451846338,-151.0,0.00035616,14]
[359962910,1746451846347,-151.0,0.00035616,14]
[359962912,1746451846356,-400.0,0.00035616,14]
[359962914,1746451846365,-3318.76,0.00035616,14]
[359962916,1746451846374,-402.86021052,0.00035616,14]
[359962918,1746451846383,-400.0,0.00035616,14]
[359962920,1746451846393,-400.0,0.00035616,14]
[359962922,1746451846403,-400.0,0.00035616,14]
[359962924,1746451846412,-400.0,0.00035616,14]
[359962926,1746451846421,-400.0,0.00035616,14]
[359962928,1746451846430,-819.93,0.00035616,14]
[359962930,1746451846439,-404.52694129,0.00035616,14]
[359962932,1746451846450,-400.0,0.00035616,14]
[359962934,1746451846459,-400.0,0.00035616,14]
[359962936,1746451846468,-400.0,0.00035616,14]
[359962938,1746451846477,-400.0,0.00035616,14]
[359962940,1746451846486,-404.8013712,0.00035616,14]
[359962942,1746451846496,-400.0,0.00035616,14]
[359962944,1746451846505,-250.77274752,0.00035616,7]
[359962946,1746451846514,-400.0,0.00035616,14]
[359962948,1746451846523,-151.0,0.00035616,7]
[359962950,1746451846533,-400.0,0.00035616,14]
[359962952,1746451846542,-765.97,0.00035616,14]
[359962954,1746451846551,-151.0,0.00035616,7]
[359962956,1746451846562,-400.0,0.00035616,14]
[359962958,1746451846571,-500.0,0.00035616,7]
[359962960,1746451846580,-400.0,0.00035616,14]
[359962962,1746451846589,-913.28,0.00035616,14]
[359962964,1746451846599,-400.0,0.00035616,14]
[359962966,1746451846608,-400.0,0.00035616,14]
[359962968,1746451846617,-508.31748357,0.00035616,14]
[359962970,1746451846626,-400.0,0.00035616,14]
[359962972,1746451846635,-400.0,0.00035616,14]
[359962974,1746451846644,-400.0,0.00035616,14]
[359962976,1746451846654,-400.0,0.00035616,14]
[359962978,1746451846663,-400.0,0.00035616,14]
[359962980,1746451846673,-400.0,0.00035616,14]
[359962982,1746451846682,-400.0,0.00035616,14]
[359962984,1746451846691,-81.81575434,0.00035616,14]
[359965550,1746452746162,-2068.0,0.00025204,2]
[359965551,1746452746183,-153.48465623,0.000268,2]
[359965552,1746452746209,-344.66338742,0.000269,16]
[359965553,1746452746231,-1200.0,0.00026999,2]
[359965554,1746452746253,-313.81875325,0.00027,3]
[359965555,1746452746273,-313.81875325,0.00027,3]
[359965556,1746452746293,-841.77443764,0.00027,3]
[359965557,1746452746318,-344.66338739,0.00027348,16]
[359965558,1746452746339,-297.029282,0.00027397,2]
[359965559,1746452746364,-344.66338739,0.00027797,17]
[359965560,1746452746388,-344.66338739,0.00028245,18]
[359965561,1746452746412,-344.66338739,0.00028693,19]
[359965562,1746452746435,-160.0,0.00029026,2]
[359965563,1746452746459,-344.66338739,0.00029141,20]
[359965564,1746452746482,-344.66338739,0.0002959,21]
[359965565,1746452746502,-801.508584,0.00029711,2]
[359965566,1746452746523,-382.3922699,0.00029981,2]
[359965567,1746452746543,-309.5008986,0.00030015,2]
[359965568,1746452746566,-344.66338739,0.00030038,22]
[359965569,1746452746587,-225.195366,0.00030229,2]
[359965570,1746452746609,-250.0,0.00030441,2]
[359965571,1746452746632,-344.66338739,0.00030486,23]
[359965572,1746452746656,-344.66338739,0.00030934,24]
[359965573,1746452746680,-344.66338739,0.00031383,24]
[359965574,1746452746702,-250.0,0.00031766,2]
[359965575,1746452746726,-344.66338739,0.00031831,25]
[359965576,1746452746747,-4023.7247814,0.00032067,2]
[359965577,1746452746772,-344.66338739,0.00032279,26]
[359965578,1746452746795,-344.66338739,0.00032728,27]
[359965579,1746452746817,-297.029282,0.00033165,2]
[359965580,1746452746840,-344.66338739,0.00033176,28]
[359965581,1746452746861,-232.02466907,0.00033516,2]
[359965582,1746452746886,-344.66338739,0.00033624,29]
[359965583,1746452746910,-344.66338739,0.00034072,30]
[359965584,1746452746936,-344.66338739,0.00034521,31]
[359965585,1746452746957,-317.3075416,0.00034849,30]
[359965586,1746452746992,-853.13639393,0.00034876,7]
[359965587,1746452747026,-853.13639393,0.00034876,7]
[359965588,1746452747060,-853.13639393,0.00034876,7]
[359965589,1746452747092,-853.13639393,0.00034876,7]
[359965590,1746452747124,-853.13639393,0.00034876,7]
[359965591,1746452747156,-853.13639393,0.00034876,7]
[359965592,1746452747191,-853.13639393,0.00034876,7]
[359965593,1746452747222,-853.13639393,0.00034876,7]
[359965594,1746452747254,-853.13639393,0.00034876,7]
[359965595,1746452747285,-853.13639393,0.00034876,7]
[359965596,1746452747317,-853.13639393,0.00034876,7]
[359965597,1746452747348,-853.13639393,0.00034876,7]
[359965598,1746452747381,-853.13639393,0.00034876,7]
[359965599,1746452747412,-853.13639393,0.00034876,7]
[359965600,1746452747445,-853.13639393,0.00034876,7]
[359965601,1746452747476,-853.13639393,0.00034876,7]
[359965602,1746452747506,-853.13639393,0.00034876,7]
[359965603,1746452747536,-853.13639393,0.00034876,7]
[359965604,1746452747566,-853.13639393,0.00034876,7]
[359965605,1746452747600,-853.13639393,0.00034876,7]
[359965606,1746452747630,-853.13639393,0.00034876,7]
[359965607,1746452747661,-853.13639393,0.00034876,7]
[359965608,1746452747693,-853.13639393,0.00034876,7]
[359965609,1746452747722,-853.13639393,0.00034876,7]
[359965610,1746452747751,-853.13639393,0.00034876,7]
[359965611,1746452747782,-853.13639393,0.00034876,7]
[359965612,1746452747814,-853.13639393,0.00034876,7]
[359965613,1746452747846,-853.13639393,0.00034876,7]
[359965614,1746452747878,-853.13639393,0.00034876,7]
[359965615,1746452747909,-853.13639393,0.00034876,7]
[359965616,1746452747945,-853.13639393,0.00034876,7]
[359965617,1746452747979,-853.13639393,0.00034876,7]
[359965618,1746452748012,-853.13639393,0.00034876,7]
[359965619,1746452748044,-853.13639393,0.00034876,7]
[359965620,1746452748080,-853.13639393,0.00034876,7]
[359965621,1746452748114,-853.13639393,0.00034876,7]
[359965622,1746452748145,-853.13639393,0.00034876,7]
[359965623,1746452748177,-853.13639393,0.00034876,7]
[359965624,1746452748209,-853.13639393,0.00034876,7]
[359965625,1746452748241,-853.13639393,0.00034876,7]
[359965626,1746452748273,-853.13639393,0.00034876,7]
[359965627,1746452748306,-853.13639393,0.00034876,7]
[359965628,1746452748337,-853.13639393,0.00034876,7]
[359965629,1746452748477,-853.13639393,0.00034876,7]
[359965630,1746452748499,-153.0,0.00034877,30]
[359965631,1746452748520,-157.6354191,0.00034877,30]
[359965632,1746452748542,-153.0,0.00034877,30]
[359965633,1746452748562,-157.6354191,0.00034877,30]
[359965634,1746452748583,-153.0,0.00034877,30]
[359965635,1746452748604,-157.6354191,0.00034877,30]
[359965636,1746452748624,-153.0,0.00034877,30]
[359965637,1746452748645,-160.0,0.00034885,2]
[359965638,1746452748665,-160.0,0.00034885,2]
[359965639,1746452748685,-841.77443764,0.00034885,2]
[359965640,1746452748707,-421.83547488,0.00034885,2]
[359965641,1746452748727,-182.23035355,0.00034885,2]
[359965642,1746452748747,-12607.13495863,0.00034908,7]
[359965643,1746452748767,-841.77443764,0.00034908,7]
[359965644,1746452748788,-160.0,0.00034908,7]
[359965645,1746452748808,-182.23035355,0.00034908,7]
[359965646,1746452748829,-421.83547488,0.00034909,7]
[359965647,1746452748850,-160.0,0.0003491,7]
[359965648,1746452748871,-292.322,0.00034911,2]
[359965649,1746452748892,-383.0276595,0.0003493,4]
[359965650,1746452748916,-344.66338739,0.00034969,31]
[359965651,1746452748938,-500.0,0.00034973,2]
[359965652,1746452748959,-500.0,0.00034973,5]
[359965653,1746452748980,-502.23852265,0.00034973,5]
[359965654,1746452749001,-500.0,0.00034973,5]
[359965655,1746452749023,-500.0,0.00034973,5]
[359965656,1746452749043,-212.17294433,0.00034973,5]
[359965657,1746452749064,-500.0,0.00034973,5]
[359965658,1746452749090,-507.78518072,0.00034973,5]
[359965659,1746452749111,-500.0,0.00034973,5]
[359965660,1746452749133,-500.0,0.00034973,5]
[359965661,1746452749157,-500.0,0.00034973,2]
[359965662,1746452749178,-500.0,0.00034973,5]
[359965663,1746452749200,-500.0,0.00034973,5]
[359965664,1746452749221,-534.07264711,0.00034973,5]
[359965665,1746452749243,-500.0,0.00034973,5]
[359965666,1746452749263,-500.0,0.00034973,2]
[359965667,1746452749284,-773.13,0.0003498,3]
[359965668,1746452749305,-910.04,0.0003498,3]
[359965669,1746452749326,-455.02,0.0003498,3]
[359965670,1746452749347,-151.67,0.0003498,3]
[359965671,1746452749368,-455.05,0.0003498,3]
[359965672,1746452749388,-239.72782164,0.00034989,7]
[359965673,1746452749409,-214.41046643,0.00034989,7]
[359965674,1746452749430,-156.90129704,0.00034989,7]
[359965675,1746452749456,-31202.2452266,0.0003499,2]
[359965676,1746452749477,-6086.14319706,0.0003499,2]
[359965677,1746452749500,-129728.47254655,0.0003499,2]
[359965678,1746452749609,-47084.25040345,0.0003499,2]
[359965679,1746452749631,-34488.1447833,0.0003499,2]
[359965680,1746452749653,-421.83547488,0.00035,3]
[359965681,1746452749675,-160.0,0.00035,3]
[359965682,1746452749698,-12607.13495863,0.00035,3]
[359965683,1746452749720,-841.77443764,0.00035,3]
[359965684,1746452749741,-160.0,0.00035,3]
[359965685,1746452749762,-18280.80080034,0.00035,3]
[359965686,1746452749783,-182.23035355,0.00035,3]
[359965687,1746452749806,-32129.80983838,0.00035,2]
[359966000,1746452832090,-384.4791901,0.00034874,2]
[359966001,1746452834086,-15.5208099,0.00034874,2]
[359966002,1746452834110,-301.00583348,0.000349,2]
[359966003,1746452834142,-41.77395325,0.000349,2]
[359966004,1746452834168,-199.54196113,0.000349,31]
[359966005,1746452834193,-421.83547488,0.00034908,7]
[359966006,1746452834215,-708.0,0.00034911,2]
[359966007,1746452834236,-2242.0,0.00034911,2]
[359966008,1746452834259,-403.0,0.00034911,2]
[359966009,1746452834281,-306.4221276,0.0003493,4]
[359966010,1746452834302,-500.0,0.00034973,5]
[359966011,1746452834323,-500.0,0.00034973,5]
[359966012,1746452834344,-500.0,0.00034973,5]
[359966013,1746452834365,-500.0,0.00034973,5]
[359966014,1746452834385,-500.0,0.00034973,5]
[359966015,1746452834405,-281.93987747,0.00034973,2]
[359966016,1746452834427,-167.80947515,0.00034999,7]
[359966017,1746452834451,-84898.46074201,0.00035,2]
[359966018,1746452834472,-421.83547488,0.00035,3]
[359966019,1746452834494,-9140.40040017,0.00035,3]
[359966020,1746452834516,-23717.97480746,0.00035,5]
[359966021,1746452842141,-291380.73096808,0.00035,5]
[359966022,1746452845123,-17733.89851769,0.00035,5]
[359966023,1746452849097,-313.81875325,0.00027,3]
[359966024,1746452849123,-92.65818325,0.00027,3]
[359966029,1746452953142,-221.16057,0.00027,3]
[359966030,1746452954114,250.0,0.000269,2]
[359966048,1746453037479,-154.68311272,0.000329,2]
[359966049,1746453037490,-159.5150221,0.00033644,2]
[359966050,1746453037500,-178.71646532,0.00034675,2]
[359966051,1746453037510,-160.0,0.00034773,2]
[359966052,1746453037520,-400.0,0.00034774,2]
[359966053,1746453037529,-300.0,0.00034774,3]
[359966054,1746453037539,-3434.04257216,0.00034775,2]
[359966055,1746453037549,-263.84881903,0.00034775,2]
[359966056,1746453037559,-230.05313757,0.000349,31]
[359966057,1746453037569,-299.93231338,0.000349,2]
[359966058,1746453037578,-177.33855432,0.000349,2]
[359966059,1746453037588,-160.0,0.00034907,2]
[359966060,1746453037597,-841.77443764,0.00034907,2]
[359966061,1746453037607,-150.194,0.00034911,2]
[359966062,1746453037617,-157.72,0.00034911,2]
[359966063,1746453037627,-245.1377021,0.0003493,4]
[359966064,1746453037637,-500.0,0.00034973,5]
[359966065,1746453037648,-500.0,0.00034973,5]
[359966066,1746453037658,-500.0,0.00034973,5]
[359966067,1746453037669,-500.0,0.00034973,5]
[359966068,1746453037679,-301.24570097,0.00034973,5]
[359966071,1746453037696,-198.75429903,0.00034973,5]
[359966072,1746453037706,-254.60954949,0.00034973,5]
[359966073,1746453037715,-839.12,0.0003499,3]
[359966074,1746453037725,-419.56,0.0003499,3]
[359966075,1746453037735,-209.78,0.0003499,3]
[359966076,1746453037745,-629.36,0.0003499,3]
[359966077,1746453037755,-421.83547488,0.00034995,2]
[359966079,1746453037765,-182.23035355,0.00034995,2]
[359966080,1746453037774,-197.04705396,0.00034999,7]
[359966082,1746453037784,-282.54019485,0.00034999,7]
[359966083,1746453037794,-500.0,0.00034999,7]
[359966084,1746453037803,-500.0,0.00034999,7]
[359966085,1746453037813,-500.0,0.00034999,7]
[359966087,1746453037823,-608.55,0.00034999,7]
[359966089,1746453037833,-324.57244182,0.00034999,7]
[359966092,1746453037843,-500.0,0.00034999,7]
[359966093,1746453037852,-500.0,0.00034999,7]
[359966094,1746453037862,-500.0,0.00034999,7]
[359966095,1746453037872,-500.0,0.00034999,7]
[359966096,1746453037881,-500.0,0.00034999,7]
[359966097,1746453037891,-500.0,0.00034999,7]
[359966098,1746453037901,-500.0,0.00034999,7]
[359966099,1746453037912,-500.0,0.00034999,7]
[359966100,1746453037922,-500.0,0.00034999,7]
[359966101,1746453037932,-23545.76701423,0.00035,5]
[359966103,1746453038267,-212376.96095663,0.00035,5]
[359966104,1746453038280,-644.81481081,0.00035,5]
[359966105,1746453038325,-1474397.82150588,0.00035,5]
[359966106,1746453038383,-51984.75141922,0.00035,5]
[359966107,1746453038394,-200.0,0.00035,14]
[359966108,1746453038403,-151.0,0.00035,10]
[359966109,1746453038413,-1000.0,0.00035,2]
[359966110,1746453038423,-230.05313745,0.00035072,32]
[359966111,1746453038432,-230.05313745,0.00035245,32]
[359966112,1746453038442,-500.0,0.00035273,5]
[359966113,1746453038451,-500.0,0.00035273,5]
[359966115,1746453038461,-500.0,0.00035273,5]
[359966116,1746453038471,-511.19282563,0.00035273,5]
[359966117,1746453038481,-500.0,0.00035273,5]
[359966118,1746453038491,-500.0,0.00035273,5]
[359966119,1746453038501,-500.0,0.00035273,5]
[359966120,1746453038511,-520.39903729,0.00035273,5]
[359966121,1746453038521,-500.0,0.00035273,5]
[359966122,1746453038710,-500.92515714,0.00035273,5]
[359966123,1746453038720,-500.63442812,0.00035273,5]
[359966124,1746453038730,-500.0,0.00035273,5]
[359966125,1746453038739,-500.0,0.00035273,5]
[359966126,1746453038749,-504.40542522,0.00035273,5]
[359966127,1746453038758,-500.0,0.00035273,5]
[359966128,1746453038768,-500.0,0.00035273,5]
[359966129,1746453038777,-500.0,0.00035273,5]
[359966130,1746453038787,-500.0,0.00035273,5]
[359966131,1746453038797,-536.20665699,0.00035273,5]
[359966132,1746453038806,-500.0,0.00035273,5]
[359966133,1746453038816,-500.0,0.00035273,5]
[359966134,1746453038825,-501.20754937,0.00035273,5]
[359966135,1746453038835,-500.0,0.00035273,5]
[359966136,1746453038844,-500.0,0.00035273,5]
[359966137,1746453038854,-500.0,0.00035273,5]
[359966138,1746453038863,-500.0,0.00035273,5]
[359966139,1746453038873,-500.0,0.00035273,5]
[359966140,1746453038885,-500.58880561,0.00035273,5]
[359966141,1746453038895,-500.0,0.00035273,5]
[359966142,1746453038904,-150.0,0.00035273,5]
[359966143,1746453038914,-500.0,0.00035273,5]
[359966144,1746453038923,-503.62347096,0.00035273,5]
[359966145,1746453038933,-500.52447087,0.00035273,5]
[359966146,1746453038943,-500.0,0.00035273,5]
[359966147,1746453038953,-506.39067068,0.00035273,5]
[359966148,1746453038962,-500.0,0.00035273,2]
[359966149,1746453038971,-500.0,0.00035273,5]
[359966150,1746453038980,-500.0,0.00035273,5]
[359966151,1746453038990,-12288.52499232,0.0003529,2]
[359966152,1746453039002,-7343.33237407,0.0003529,2]
[359966153,1746453039022,-3868.54387334,0.0003529,2]
[359966161,1746453040128,-28061.262914,0.0003529,2]
[359966162,1746453040432,250.0,0.000269,2]
[359966163,1746453040756,-150.401,0.00034911,2]
[359966164,1746453040766,-6952.47113646,0.0003529,2]
[359966165,1746453040776,-4570.20020009,0.0003529,3]
[359966166,1746453040786,-152.778372,0.0003529,14]
[359966167,1746453040795,-151.0,0.0003529,14]
[359966168,1746453040805,-151.0,0.0003529,14]
[359966169,1746453040815,-151.0,0.0003529,14]
[359966170,1746453040824,-151.0,0.0003529,14]
[359966171,1746453040834,-151.0,0.0003529,14]
[359966172,1746453040844,-151.0,0.0003529,14]
[359966173,1746453040854,-151.0,0.0003529,14]
[359966174,1746453040865,-280.926574,0.0003529,14]
[359966175,1746453040875,-280.926574,0.0003529,14]
[359966176,1746453040885,-199.5809,0.0003529,14]
[359966177,1746453040895,-199.5809,0.0003529,14]
[359966178,1746453040906,-3770.928776,0.0003529,2]
[359966179,1746453040915,-3770.928776,0.0003529,2]
[359966182,1746453041046,-170992.0266291,0.0003529,2]
[359966183,1746453041435,-13938.999366,0.0003529,2]
[359966213,1746453043514,-5664.78858942,0.0003529,2]
[359966214,1746453043667,-25365.8789857,0.0003529,2]
[359966414,1746453046324,-193.85175429,0.000352,2]
[359966416,1746453046334,-1300.96560633,0.0003529,2]
[359966433,1746453046480,-133228.40453069,0.0003529,2]
[359966438,1746453046512,-4127.25636863,0.0003529,2]
[359966440,1746453046524,-15381.67992413,0.0003529,2]
[359966442,1746453046533,-1492.8,0.000353,7]
[359966444,1746453046543,-182.23035355,0.000353,7]
[359966446,1746453046552,-12053.7249177,0.00035369,2]
[359966460,1746453046684,-160.0,0.00035399,2]
[359966461,1746453046694,-230.05313745,0.00035417,32]
[359966462,1746453046703,-299.93231335,0.00035457,2]
[359966463,1746453046713,-154.644101,0.00035496,14]
[359966464,1746453046723,-151.0,0.00035496,14]
[359966465,1746453046732,-11993.37237385,0.000355,2]
[359966904,1746453087727,151.0,0.00028,2]
[359966928,1746454041146,-200.13432905,0.000268,2]
[359966929,1746454041184,-134.85539875,0.000269,2]
[359966930,1746454043539,-865.14460125,0.000269,2]
[359966931,1746454043560,-313.81875325,0.00027,3]
[359966932,1746454043581,-191.51922756,0.0002739,21]
[359966933,1746454043602,-283.773823,0.00027397,2]
[359966934,1746454043623,-275.97936765,0.00027617,2]
[359966935,1746454044088,-316.87328687,0.00027617,2]
[359966936,1746454044109,-300.0,0.00028658,2]
[359966937,1746454044130,-470.81443498,0.00028659,2]
[359966939,1746454151097,-150.0,0.00026559,2]
[359966940,1746454151117,-1000.0,0.000267,2]
[359966941,1746454151140,-697.50404941,0.0002865,10]
[359966942,1746454155160,-3302.49595059,0.0002865,10]
[359966943,1746454155180,-300.0,0.00028658,2]
[359966944,1746454155201,-9529.18556502,0.00028659,2]
[359966945,1746454155220,-327.5295806,0.00028662,2]
[359966946,1746454155241,-250.0,0.00028784,2]
[359966947,1746454155261,-195.454333,0.00028787,2]
[359966948,1746454155282,-186.3925882,0.0002879,2]
[359966949,1746454155302,-160.0,0.00029159,2]
[359966950,1746454155323,-160.0,0.00029159,2]
[359966951,1746454155344,-160.0,0.00029159,2]
[359966952,1746454155366,-827.0,0.00029658,2]
[359966953,1746454155391,-479.35417754,0.000299,21]
[359966954,1746454155418,-479.35417745,0.00030245,22]
[359966955,1746454155440,-589.0497885,0.00030305,2]
[359966956,1746454155462,-313.84138242,0.00030405,2]
[359966957,1746454155483,-400.95,0.00030405,2]
[359966958,1746454155519,-1025.89237455,0.00030405,2]
[359966959,1746454155554,-1025.89237455,0.00030405,2]
[359966960,1746454155588,-1025.89237455,0.00030405,2]
[359966961,1746454155624,-1025.89237455,0.00030405,2]
[359966962,1746454155653,-1025.89237455,0.00030405,2]
[359966963,1746454155687,-1025.89237455,0.00030405,2]
[359966964,1746454155719,-1025.89237455,0.00030405,2]
[359966965,1746454155747,-1025.89237455,0.00030405,2]
[359966966,1746454155776,-1025.89237455,0.00030405,2]
[359966967,1746454155804,-1025.89237455,0.00030405,2]
[359966968,1746454155837,-1025.89237455,0.00030405,2]
[359966969,1746454155866,-1025.89237455,0.00030405,2]
[359966970,1746454155895,-1025.89237455,0.00030405,2]
[359966971,1746454155930,-1025.89237455,0.00030405,2]
[359966972,1746454155965,-1025.89237455,0.00030405,2]
[359966973,1746454155998,-1025.89237455,0.00030405,2]
[359966974,1746454156034,-1025.89237455,0.00030405,2]
[359966975,1746454156068,-1025.89237455,0.00030405,2]
[359966976,1746454156096,-1025.89237455,0.00030405,2]
[359966977,1746454156124,-1025.89237455,0.00030405,2]
[359966978,1746454156152,-1025.89237455,0.00030405,2]
[359966979,1746454156179,-1025.89237455,0.00030405,2]
[359966980,1746454156318,-1025.89237455,0.00030405,2]
[359966981,1746454156351,-1025.89237455,0.00030405,2]
[359966982,1746454156381,-1025.89237455,0.00030405,2]
[359966983,1746454156410,-1025.89237455,0.00030405,2]
[359966984,1746454156439,-1025.89237455,0.00030405,2]
[359966985,1746454156474,-1025.89237455,0.00030405,2]
[359966986,1746454156509,-1025.89237455,0.00030405,2]
[359966987,1746454156543,-1025.89237455,0.00030405,2]
[359966988,1746454156580,-1025.89237455,0.00030405,2]
[359966989,1746454156615,-1025.89237455,0.00030405,2]
[359966990,1746454156646,-1025.89237455,0.00030405,2]
[359966991,1746454156680,-1025.89237455,0.00030405,2]
[359966992,1746454156716,-1025.89237455,0.00030405,2]
[359966993,1746454156752,-1025.89237455,0.00030405,2]
[359966994,1746454156784,-1025.89237455,0.00030405,2]
[359966995,1746454156822,-1025.89237455,0.00030405,2]
[359966996,1746454156855,-1025.89237455,0.00030405,2]
[359966997,1746454156887,-1025.89237455,0.00030405,2]
[359966998,1746454156916,-1025.89237455,0.00030405,2]
[359966999,1746454156947,-1025.89237455,0.00030405,2]
[359967000,1746454156976,-1025.89237455,0.00030405,2]
[359967001,1746454157004,-1025.89237455,0.00030405,2]
[359967002,1746454157031,-1021.52687509,0.00030405,2]
[359967003,1746454157058,-1021.52687509,0.00030405,2]
[359967004,1746454157085,-1021.52687509,0.00030405,2]
[359967005,1746454157113,-1021.52687509,0.00030405,2]
[359967006,1746454157141,-1021.52687509,0.00030405,2]
[359967007,1746454157170,-1021.52687509,0.00030405,2]
[359967008,1746454157198,-1021.52687509,0.00030405,2]
[359967009,1746454157225,-1021.52687509,0.00030405,2]
[359967010,1746454157252,-1021.52687509,0.00030405,2]
[359967011,1746454157278,-1021.52687509,0.00030405,2]
[359967012,1746454157304,-1021.52687509,0.00030405,2]
[359967013,1746454157332,-1021.52687509,0.00030405,2]
[359967014,1746454157359,-1021.52687509,0.00030405,2]
[359967015,1746454157386,-1021.52687509,0.00030405,2]
[359967016,1746454157412,-1021.52687509,0.00030405,2]
[359967017,1746454157439,-1021.52687509,0.00030405,2]
[359967018,1746454157465,-1021.52687509,0.00030405,2]
[359967019,1746454157491,-1021.52687509,0.00030405,2]
[359967020,1746454157517,-1021.52687509,0.00030405,2]
[359967021,1746454157545,-1021.52687509,0.00030405,2]
[359967022,1746454157574,-1021.52687509,0.00030405,2]
[359967023,1746454157602,-1021.52687509,0.00030405,2]
[359967024,1746454157628,-1021.52687509,0.00030405,2]
[359967025,1746454157657,-1021.52687509,0.00030405,2]
[359967026,1746454157684,-1021.52687509,0.00030405,2]
[359967027,1746454157711,-1021.52687509,0.00030405,2]
[359967028,1746454157737,-1021.52687509,0.00030405,2]
[359967029,1746454157758,-19074.9592984,0.00030406,2]
[359967030,1746454157779,-1123.07688322,0.00030406,2]
[359967031,1746454157799,-163.01285598,0.00030415,2]
[359967032,1746454157821,-240.67343276,0.00030415,2]
[359967033,1746454157842,-500.0,0.00030415,2]
[359967034,1746454157862,-237.45979594,0.00030415,2]
[359967035,1746454157884,-168.47140293,0.00030415,2]
[359967036,1746454157908,-479.35417745,0.0003059,23]
[359967037,1746454157928,-155.0,0.00030737,2]
[359967038,1746454157951,-160.0,0.00030918,2]
[359967039,1746454157973,-420.0,0.00030929,2]
[359967040,1746454157997,-479.35417745,0.00030934,24]
[359967041,1746454158020,-500.0,0.00030959,2]
[359967042,1746454158040,-500.0,0.00031,5]